[Event "Klubbmästerskap 2025 Torsdagar"]
[Site "Linköping, Sweden"]
[Date "2025.02.27"]
[Round "5.1"]
[White "Rosenbecker, Daniel"]
[Black "Grundel, Sam"]
[Result "0-1"]
[TimeControl "90 min + 30 sec/move"]
[WhiteTitle "CM"]
[WhiteElo "2110"]
[BlackElo "2019"]

1. d4 {[%clk 01:30:55]} {[%emt 00:00:04]} d5 {[%clk 01:30:47]} {[%emt
00:00:14]} 2. c4 {[%clk 01:31:20]} {[%emt 00:00:06]} c6 {[%clk 01:31:09]}
{[%emt 00:00:07]} 3. Nf3 {[%clk 01:31:33]} {[%emt 00:00:16]} Nf6 {[%clk
01:31:22]} {[%emt 00:00:18]} 4. g3 {[%clk 01:31:56]} {[%emt 00:00:06]} dxc4
{[%clk 01:30:55]} {[%emt 00:00:58]} 5. Bg2 {[%clk 01:32:17]} {[%emt 00:00:09]}
b5 {[%clk 01:30:56]} {[%emt 00:00:29]} 6. Ne5 {[%clk 01:29:43]} {[%emt
00:03:04]} Bb7 {[%clk 01:23:08]} {[%emt 00:08:19]} 7. a4 {[%clk 01:17:35]}
{[%emt 00:12:38]} a6 {[%clk 01:19:29]} {[%emt 00:04:08]} 8. b3 {[%clk
01:18:01]} {[%emt 00:00:04]} cxb3 {[%clk 01:09:07]} {[%emt 00:10:52]} 9. Bb2
{[%clk 01:18:06]} {[%emt 00:00:25]} e6 {[%clk 01:07:12]} {[%emt 00:02:24]} 10.
O-O {[%clk 01:16:56]} {[%emt 00:01:40]} Nbd7 {[%clk 01:00:35]} {[%emt
00:07:07]} 11. Nxc6 {[%clk 01:12:39]} {[%emt 00:04:47]} Qb6 {[%clk 01:00:03]}
{[%emt 00:01:02]} 12. axb5 {[%clk 01:10:55]} {[%emt 00:02:14]} axb5 {[%clk
00:58:48]} {[%emt 00:01:46]} 13. Rxa8+ {[%clk 01:11:20]} {[%emt 00:00:05]} Bxa8
{[%clk 00:59:11]} {[%emt 00:00:07]} 14. Ne5 {[%clk 00:46:27]} {[%emt 00:25:23]}
Bxg2 {[%clk 00:52:01]} {[%emt 00:07:40]} 15. Kxg2 {[%clk 00:46:54]} {[%emt
00:00:02]} Be7 {[%clk 00:51:13]} {[%emt 00:01:18]} 16. Qxb3 {[%clk 00:41:44]}
{[%emt 00:05:40]} O-O {[%clk 00:47:57]} {[%emt 00:03:46]} 17. Nxd7 {[%clk
00:39:56]} {[%emt 00:02:19]} Qb7+ {[%clk 00:42:46]} {[%emt 00:05:40]} 18. f3
{[%clk 00:40:08]} {[%emt 00:00:19]} Nxd7 {[%clk 00:41:51]} {[%emt 00:01:26]} 19.
Rc1 {[%clk 00:34:00]} {[%emt 00:06:38]} b4 {[%clk 00:36:56]} {[%emt 00:05:25]}
20. Qc4 {[%clk 00:30:48]} {[%emt 00:03:41]} Nb6 {[%clk 00:29:07]} {[%emt
00:08:19]} 21. Qb5 {[%clk 00:29:43]} {[%emt 00:01:36]} Qa7 {[%clk 00:28:19]}
{[%emt 00:01:17]} 22. Nd2 {[%clk 00:08:05]} {[%emt 00:22:08]} Qa2 {[%clk
00:21:53]} {[%emt 00:06:57]} 23. Rc2 {[%clk 00:07:17]} {[%emt 00:01:18]} Na4
{[%clk 00:17:00]} {[%emt 00:05:22]} 24. Nc4 {[%clk 00:00:40]} {[%emt 00:07:08]}
Nc3 {[%clk 00:13:57]} {[%emt 00:03:33]} 25. Qb7 {[%clk 00:00:37]} {[%emt
00:00:33]} Qxc4 {[%clk 00:12:22]} {[%emt 00:02:05]} 26. Qxe7 {[%clk 00:00:43]}
{[%emt 00:00:24]} Qb3 {[%clk 00:12:33]} {[%emt 00:00:17]} 27. Bxc3 {[%clk
00:00:35]} {[%emt 00:00:40]} Qxc2 {[%clk 00:12:14]} {[%emt 00:00:49]} 28. Bxb4
{[%clk 00:01:01]} {[%emt 00:00:03]} Qxe2+ {[%clk 00:12:31]} {[%emt 00:00:13]}
29. Kh3 {[%clk 00:01:28]} {[%emt 00:00:03]} Ra8 {[%clk 00:11:57]} {[%emt
00:01:05]} 30. Qb7 {[%clk 00:01:05]} {[%emt 00:00:51]} Qa6 {[%clk 00:09:54]}
{[%emt 00:02:34]} 31. Qe4 {[%clk 00:01:33]} {[%emt 00:00:02]} h6 {[%clk
00:09:08]} {[%emt 00:01:16]} 32. d5 {[%clk 00:01:56]} {[%emt 00:00:07]} exd5
{[%clk 00:08:25]} {[%emt 00:01:13]} 33. Qxd5 {[%clk 00:02:21]} {[%emt
00:00:06]} Qe6+ {[%clk 00:06:56]} {[%emt 00:01:59]} 34. Qxe6 {[%clk 00:02:43]}
{[%emt 00:00:08]} fxe6 {[%clk 00:07:25]} 35. Bd6 {[%clk 00:01:16]} {[%emt
00:01:58]} Ra5 {[%clk 00:07:03]} {[%emt 00:00:52]} 36. g4 {[%clk 00:01:02]}
{[%emt 00:00:44]} Rd5 {[%clk 00:07:02]} {[%emt 00:00:31]} 37. Bb8 {[%clk
00:01:24]} {[%emt 00:00:08]} e5 {[%clk 00:06:47]} {[%emt 00:00:45]} 38. Kg2
{[%clk 00:01:33]} {[%emt 00:00:21]} Kf7 {[%clk 00:06:42]} {[%emt 00:00:35]} 39.
h4 {[%clk 00:01:50]} {[%emt 00:00:14]} Ke6 {[%clk 00:07:02]} {[%emt 00:00:09]}
40. Ba7 {[%clk 00:01:17]} {[%emt 00:01:04]} Rb5 {[%clk 00:06:43]} {[%emt
00:00:48]} 41. Be3 {[%clk 00:00:47]} {[%emt 00:01:01]} Kd5 {[%clk 00:06:58]}
{[%emt 00:00:14]} 42. h5 {[%clk 00:00:38]} {[%emt 00:00:40]} Rb3 {[%clk
00:06:28]} {[%emt 00:00:59]} 43. Kf2 {[%clk 00:00:42]} {[%emt 00:00:26]} e4
{[%clk 00:06:25]} {[%emt 00:00:33]} 44. g5 {[%clk 00:00:35]} {[%emt 00:00:38]}
hxg5 {[%clk 00:05:20]} {[%emt 00:01:35]} 45. fxe4+ {[%clk 00:01:01]} {[%emt
00:00:04]} Kxe4 {[%clk 00:05:41]} {[%emt 00:00:08]} 46. Bxg5 {[%clk 00:01:28]}
{[%emt 00:00:03]} Kf5 {[%clk 00:06:04]} {[%emt 00:00:08]} 47. Be3 {[%clk
00:01:05]} {[%emt 00:00:53]} Rxe3 {[%clk 00:04:55]} {[%emt 00:01:39]} 48. Kxe3
{[%clk 00:01:32]} {[%emt 00:00:03]} Kg5 {[%clk 00:05:18]} {[%emt 00:00:06]} 49.
Kf3 {[%clk 00:00:38]} {[%emt 00:01:21]} Kxh5 {[%clk 00:05:40]} {[%emt
00:00:11]} 50. Kf4 {[%clk 00:00:55]} {[%emt 00:00:13]} Kh4 {[%clk 00:06:00]}
{[%emt 00:00:10]} 51. Kf3 {[%clk 00:01:12]} {[%emt 00:00:13]} g5 {[%clk
00:06:20]} {[%emt 00:00:10]} 52. Kg2 {[%clk 00:01:19]} {[%emt 00:00:23]} Kg4
{[%clk 00:06:43]} {[%emt 00:00:07]} 53. Kh2 {[%clk 00:01:14]} {[%emt 00:00:35]}
Kf3 {[%clk 00:07:06]} {[%emt 00:00:07]} 54. Kh3 {[%clk 00:01:27]} {[%emt
00:00:18]} g4 {[%clk 00:07:00]} {[%emt 00:00:35]} 55. Kh2 {[%clk 00:01:51]}
{[%emt 00:00:06]} Kf2 {[%clk 00:06:57]} {[%emt 00:00:33]} 56. Kh1 {[%clk
00:02:15]} {[%emt 00:00:06]} Kg3 {[%clk 00:07:21]} {[%emt 00:00:07]} 57. Kg1
{[%clk 00:02:42]} {[%emt 00:00:03]} Kh3 {[%clk 00:07:43]} {[%emt 00:00:07]} 58.
Kh1 {[%clk 00:02:56]} {[%emt 00:00:17]} g3 {[%clk 00:08:07]} {[%emt 00:00:06]}
0-1

[Event "Klubbmästerskap 2025 Torsdagar"]
[Site "Linköping, Sweden"]
[Date "2025.02.27"]
[Round "5.2"]
[White "Andersson, Stefan 1975"]
[Black "Gustafsson, Nils"]
[Result "1-0"]
[TimeControl "90 min + 30 sec/move"]
[WhiteElo "1937"]
[BlackElo "1860"]

1. e4 {[%clk 01:30:50]} {[%emt 00:00:09]} e5 {[%clk 01:30:53]} {[%emt
00:00:06]} 2. Nf3 {[%clk 01:31:17]} {[%emt 00:00:03]} Nc6 {[%clk 01:31:10]}
{[%emt 00:00:12]} 3. Bb5 {[%clk 01:31:38]} {[%emt 00:00:10]} a6 {[%clk
01:31:21]} {[%emt 00:00:19]} 4. Bxc6 {[%clk 01:31:25]} {[%emt 00:00:43]} dxc6
{[%clk 01:31:35]} {[%emt 00:00:16]} 5. O-O {[%clk 01:31:49]} {[%emt 00:00:06]}
Bg4 {[%clk 01:31:26]} {[%emt 00:00:39]} 6. h3 {[%clk 01:28:08]} {[%emt
00:04:11]} h5 {[%clk 01:31:45]} {[%emt 00:00:11]} 7. d3 {[%clk 01:28:31]}
{[%emt 00:00:07]} Qf6 {[%clk 01:31:18]} {[%emt 00:00:56]} 8. Nbd2 {[%clk
01:28:47]} {[%emt 00:00:14]} Ne7 {[%clk 01:30:17]} {[%emt 00:01:31]} 9. Nc4
{[%clk 01:28:01]} {[%emt 00:01:16]} Bxf3 {[%clk 01:29:13]} {[%emt 00:01:34]} 10.
Qxf3 {[%clk 01:28:27]} {[%emt 00:00:05]} Qxf3 {[%clk 01:29:25]} {[%emt
00:00:17]} 11. gxf3 {[%clk 01:28:55]} {[%emt 00:00:03]} Ng6 {[%clk 01:28:32]}
{[%emt 00:01:22]} 12. Be3 {[%clk 01:28:01]} {[%emt 00:01:24]} c5 {[%clk
01:27:17]} {[%emt 00:01:45]} 13. a4 {[%clk 01:27:31]} {[%emt 00:01:01]} O-O-O
{[%clk 01:23:46]} {[%emt 00:04:00]} 14. Kh1 {[%clk 01:26:45]} {[%emt 00:01:17]}
Bd6 {[%clk 01:17:47]} {[%emt 00:06:29]} 15. Rg1 {[%clk 01:23:07]} {[%emt
00:04:08]} Rdg8 {[%clk 01:14:32]} {[%emt 00:03:44]} 16. Rg3 {[%clk 01:17:03]}
{[%emt 00:06:35]} Nf4 {[%clk 01:10:35]} {[%emt 00:04:27]} 17. Bxf4 {[%clk
01:06:11]} {[%emt 00:11:23]} exf4 {[%clk 01:10:20]} {[%emt 00:00:44]} 18. Rg5
{[%clk 01:05:06]} {[%emt 00:01:35]} g6 {[%clk 01:07:43]} {[%emt 00:03:07]} 19.
Rag1 {[%clk 01:02:48]} {[%emt 00:02:48]} Rd8 {[%clk 01:04:28]} {[%emt
00:03:46]} 20. Re1 {[%clk 01:00:29]} {[%emt 00:02:49]} Rhe8 {[%clk 00:57:31]}
{[%emt 00:07:26]} 21. Rgg1 {[%clk 00:54:47]} {[%emt 00:06:12]} Be5 {[%clk
00:49:56]} {[%emt 00:08:05]} 22. a5 {[%clk 00:47:08]} {[%emt 00:08:09]} Re6
{[%clk 00:36:13]} {[%emt 00:14:07]} 23. Ra1 {[%clk 00:39:13]} {[%emt 00:08:31]}
Bf6 {[%clk 00:33:45]} {[%emt 00:02:58]} 24. Rgd1 {[%clk 00:36:55]} {[%emt
00:02:48]} Bg7 {[%clk 00:26:01]} {[%emt 00:08:14]} 25. Re1 {[%clk 00:33:56]}
{[%emt 00:03:29]} Be5 {[%clk 00:25:22]} {[%emt 00:01:09]} 26. Kg2 {[%clk
00:33:45]} {[%emt 00:00:41]} Rd7 {[%clk 00:21:58]} {[%emt 00:03:54]} 27. Kf1
{[%clk 00:33:27]} {[%emt 00:00:48]} Rd8 {[%clk 00:21:56]} {[%emt 00:00:32]} 28.
Ra3 {[%clk 00:33:30]} {[%emt 00:00:27]} Rd7 {[%clk 00:21:44]} {[%emt 00:00:43]}
29. Rb3 {[%clk 00:33:17]} {[%emt 00:00:43]} Rd8 {[%clk 00:21:28]} {[%emt
00:00:45]} 30. Rb1 {[%clk 00:28:44]} {[%emt 00:05:03]} c6 {[%clk 00:09:15]}
{[%emt 00:12:44]} 31. Ra3 {[%clk 00:25:50]} {[%emt 00:03:23]} Kb8 {[%clk
00:08:50]} {[%emt 00:00:56]} 32. Ke2 {[%clk 00:25:09]} {[%emt 00:01:11]} Re7
{[%clk 00:07:58]} {[%emt 00:01:22]} 33. Ra4 {[%clk 00:25:15]} {[%emt 00:00:24]}
Re6 {[%clk 00:07:09]} {[%emt 00:01:18]} 34. b4 {[%clk 00:23:05]} {[%emt
00:02:41]} cxb4 {[%clk 00:06:44]} {[%emt 00:00:53]} 35. Raxb4 {[%clk 00:23:28]}
{[%emt 00:00:09]} Rd7 {[%clk 00:06:56]} {[%emt 00:00:18]} 36. R4b3 {[%clk
00:22:42]} {[%emt 00:01:15]} Ree7 {[%clk 00:06:09]} {[%emt 00:01:16]} 37. Nb6
{[%clk 00:22:07]} {[%emt 00:01:06]} Rd8 {[%clk 00:04:26]} {[%emt 00:02:13]} 38.
Na4 {[%clk 00:21:36]} {[%emt 00:01:01]} Bd4 {[%clk 00:03:34]} {[%emt 00:01:22]}
39. c3 {[%clk 00:20:41]} {[%emt 00:01:25]} Ba7 {[%clk 00:03:34]} {[%emt
00:00:30]} 40. d4 {[%clk 00:20:19]} {[%emt 00:00:52]} Kc8 {[%clk 00:02:56]}
{[%emt 00:01:08]} 41. Rg1 {[%clk 00:20:11]} {[%emt 00:00:38]} Kc7 {[%clk
00:02:14]} {[%emt 00:01:12]} 42. Kf1 {[%clk 00:20:09]} {[%emt 00:00:31]} Rdd7
{[%clk 00:01:38]} {[%emt 00:01:07]} 43. Rg5 {[%clk 00:19:51]} {[%emt 00:00:48]}
Rd8 {[%clk 00:01:11]} {[%emt 00:00:57]} 44. Rb1 {[%clk 00:18:20]} {[%emt
00:02:01]} Rdd7 {[%clk 00:01:26]} {[%emt 00:00:15]} 45. Re1 {[%clk 00:18:31]}
{[%emt 00:00:18]} Rd8 {[%clk 00:01:37]} {[%emt 00:00:19]} 46. Re2 {[%clk
00:17:22]} {[%emt 00:01:39]} Rdd7 {[%clk 00:01:46]} {[%emt 00:00:22]} 47. Rd2
{[%clk 00:17:22]} {[%emt 00:00:30]} Rd8 {[%clk 00:01:21]} {[%emt 00:00:55]} 48.
Ke1 {[%clk 00:15:52]} {[%emt 00:01:59]} Rdd7 {[%clk 00:01:05]} {[%emt
00:00:46]} 49. Kd1 {[%clk 00:13:04]} {[%emt 00:03:19]} Rd8 {[%clk 00:01:18]}
{[%emt 00:00:17]} 50. Rg1 {[%clk 00:13:21]} {[%emt 00:00:13]} Rdd7 {[%clk
00:01:32]} {[%emt 00:00:16]} 51. Re1 {[%clk 00:13:46]} {[%emt 00:00:04]} Re8
{[%clk 00:01:12]} {[%emt 00:00:51]} 52. e5 {[%clk 00:13:58]} {[%emt 00:00:18]}
Rd5 {[%clk 00:01:11]} {[%emt 00:00:30]} 53. Re4 {[%clk 00:13:51]} {[%emt
00:00:37]} Rxa5 {[%clk 00:01:28]} {[%emt 00:00:14]} 54. Nb2 {[%clk 00:14:07]}
{[%emt 00:00:13]} Ra1+ {[%clk 00:00:36]} {[%emt 00:01:22]} 55. Ke2 {[%clk
00:14:33]} {[%emt 00:00:05]} Rh1 {[%clk 00:00:47]} {[%emt 00:00:18]} 56. Nc4
{[%clk 00:14:55]} {[%emt 00:00:08]} g5 {[%clk 00:00:52]} {[%emt 00:00:25]} 57.
Nd6 {[%clk 00:15:11]} {[%emt 00:00:15]} Re7 {[%clk 00:00:57]} {[%emt 00:00:25]}
58. Nf5 {[%clk 00:15:25]} {[%emt 00:00:15]} Re8 {[%clk 00:00:58]} {[%emt
00:00:29]} 59. Ng7 {[%clk 00:15:41]} {[%emt 00:00:14]} Rh8 {[%clk 00:00:59]}
{[%emt 00:00:29]} 60. e6 {[%clk 00:15:57]} {[%emt 00:00:14]} fxe6 {[%clk
00:01:15]} {[%emt 00:00:14]} 61. Nxe6+ {[%clk 00:16:22]} {[%emt 00:00:05]} Kd7
{[%clk 00:00:56]} {[%emt 00:00:50]} 62. Nxg5 {[%clk 00:16:46]} {[%emt
00:00:05]} Rg8 {[%clk 00:00:34]} {[%emt 00:00:51]} 63. Nh7 {[%clk 00:16:48]}
{[%emt 00:00:28]} Rgg1 {[%clk 00:00:44]} {[%emt 00:00:21]} 64. Nf6+ {[%clk
00:17:04]} {[%emt 00:00:14]} Kd6 {[%clk 00:00:43]} {[%emt 00:00:31]} 65. Nxh5
{[%clk 00:17:11]} {[%emt 00:00:23]} a5 {[%clk 00:00:35]} {[%emt 00:00:39]} 66.
Nxf4 {[%clk 00:17:32]} {[%emt 00:00:08]} a4 {[%clk 00:00:32]} {[%emt 00:00:33]}
67. Kd3 {[%clk 00:17:13]} {[%emt 00:00:48]} b5 {[%clk 00:00:36]} {[%emt
00:00:26]} 68. Re6+ {[%clk 00:16:53]} {[%emt 00:00:49]} Kd7 {[%clk 00:00:59]}
{[%emt 00:00:09]} 69. Rg6 {[%clk 00:17:04]} {[%emt 00:00:19]} Bb8 {[%clk
00:00:44]} {[%emt 00:00:45]} 70. Rxg1 {[%clk 00:17:07]} {[%emt 00:00:27]} Rxg1
{[%clk 00:01:02]} {[%emt 00:00:11]} 71. Nh5 {[%clk 00:17:11]} {[%emt 00:00:25]}
a3 {[%clk 00:00:52]} {[%emt 00:00:40]} 72. Nf6+ {[%clk 00:17:19]} {[%emt
00:00:21]} Ke6 {[%clk 00:01:02]} {[%emt 00:00:20]} 73. Ne4 {[%clk 00:17:44]}
{[%emt 00:00:05]} Bf4 {[%clk 00:00:39]} {[%emt 00:00:53]} 74. Ra2 {[%clk
00:17:39]} {[%emt 00:00:36]} Bc1 {[%clk 00:00:35]} {[%emt 00:00:34]} 75. Ra1
{[%clk 00:17:44]} {[%emt 00:00:25]} Rd1+ {[%clk 00:00:31]} {[%emt 00:00:34]} 76.
Kc2 {[%clk 00:17:56]} {[%emt 00:00:17]} 1-0

[Event "Klubbmästerskap 2025 Torsdagar"]
[Site "Linköping, Sweden"]
[Date "2025.02.27"]
[Round "5.3"]
[White "Westerberg, Hampus"]
[Black "Pettersson, Börje"]
[Result "1/2-1/2"]
[TimeControl "90 min + 30 sec/move"]
[WhiteElo "1851"]
[BlackElo "1906"]

1. e4 {[%clk 01:30:57]} {[%emt 00:00:02]} c5 {[%clk 01:30:43]} {[%emt
00:00:18]} 2. c3 {[%clk 01:31:22]} {[%emt 00:00:06]} g6 {[%clk 01:30:52]}
{[%emt 00:00:20]} 3. d4 {[%clk 01:30:21]} {[%emt 00:01:31]} cxd4 {[%clk
01:31:05]} {[%emt 00:00:16]} 4. cxd4 {[%clk 01:30:46]} {[%emt 00:00:06]} d5
{[%clk 01:31:16]} {[%emt 00:00:17]} 5. exd5 {[%clk 01:22:22]} {[%emt 00:08:56]}
Qxd5 {[%clk 01:28:52]} {[%emt 00:02:54]} 6. Nc3 {[%clk 01:22:47]} {[%emt
00:00:05]} Qd8 {[%clk 01:29:16]} {[%emt 00:00:06]} 7. Nf3 {[%clk 01:22:56]}
{[%emt 00:00:22]} Bg7 {[%clk 01:28:56]} {[%emt 00:00:49]} 8. Be2 {[%clk
01:22:55]} {[%emt 00:00:31]} Nf6 {[%clk 01:23:25]} {[%emt 00:06:00]} 9. O-O
{[%clk 01:23:11]} {[%emt 00:00:15]} O-O {[%clk 01:22:32]} {[%emt 00:01:23]} 10.
h3 {[%clk 01:22:43]} {[%emt 00:00:59]} a6 {[%clk 01:18:59]} {[%emt 00:04:02]}
11. Be3 {[%clk 01:19:25]} {[%emt 00:03:47]} b5 {[%clk 01:12:03]} {[%emt
00:07:28]} 12. a3 {[%clk 01:16:33]} {[%emt 00:03:22]} Bb7 {[%clk 01:11:09]}
{[%emt 00:01:22]} 13. Qd2 {[%clk 01:15:39]} {[%emt 00:01:25]} Nbd7 {[%clk
01:03:12]} {[%emt 00:08:26]} 14. Rad1 {[%clk 01:13:31]} {[%emt 00:02:39]} Nb6
{[%clk 01:01:47]} {[%emt 00:01:55]} 15. Rfe1 {[%clk 01:10:31]} {[%emt
00:03:29]} Rc8 {[%clk 01:00:11]} {[%emt 00:02:06]} 16. Bh6 {[%clk 01:04:03]}
{[%emt 00:06:59]} Nc4 {[%clk 00:53:51]} {[%emt 00:06:50]} 17. Bxc4 {[%clk
00:59:01]} {[%emt 00:05:32]} Bxf3 {[%clk 00:50:13]} {[%emt 00:04:07]} 18. Bxf7+
{[%clk 00:45:32]} {[%emt 00:14:00]} Rxf7 {[%clk 00:50:29]} {[%emt 00:00:13]} 19.
gxf3 {[%clk 00:45:58]} {[%emt 00:00:06]} Qd7 {[%clk 00:47:03]} {[%emt
00:03:56]} 20. Kg2 {[%clk 00:41:45]} {[%emt 00:04:43]} Nh5 {[%clk 00:45:22]}
{[%emt 00:02:10]} 21. Rh1 {[%clk 00:16:07]} {[%emt 00:26:08]} Rcf8 {[%clk
00:42:46]} {[%emt 00:03:05]} 22. Bxg7 {[%clk 00:13:30]} {[%emt 00:03:08]} Kxg7
{[%clk 00:40:41]} {[%emt 00:02:34]} 23. Qe3 {[%clk 00:13:28]} {[%emt 00:00:33]}
Qf5 {[%clk 00:32:16]} {[%emt 00:08:54]} 24. Rd2 {[%clk 00:11:07]} {[%emt
00:02:52]} Nf4+ {[%clk 00:24:40]} {[%emt 00:08:06]} 25. Kf1 {[%clk 00:10:54]}
{[%emt 00:00:43]} Nxh3 {[%clk 00:22:41]} {[%emt 00:02:28]} 26. Qe4 {[%clk
00:08:04]} {[%emt 00:03:22]} Qxf3 {[%clk 00:18:53]} {[%emt 00:04:16]} 27. Qxf3
{[%clk 00:07:10]} {[%emt 00:01:25]} Rxf3 {[%clk 00:19:20]} {[%emt 00:00:03]} 28.
Kg2 {[%clk 00:06:16]} {[%emt 00:01:23]} Ng5 {[%clk 00:07:12]} {[%emt 00:12:37]}
29. Re1 {[%clk 00:06:33]} {[%emt 00:00:13]} e6 {[%clk 00:07:13]} {[%emt
00:00:28]} 30. Ne4 {[%clk 00:06:10]} {[%emt 00:00:54]} Nxe4 {[%clk 00:06:26]}
{[%emt 00:01:18]} 31. Rxe4 {[%clk 00:06:35]} {[%emt 00:00:05]} R8f6 {[%clk
00:06:31]} {[%emt 00:00:25]} 32. Rc2 {[%clk 00:06:14]} {[%emt 00:00:51]} Rb3
{[%clk 00:04:50]} {[%emt 00:02:10]} 33. Rc7+ {[%clk 00:06:07]} {[%emt
00:00:38]} Kh6 {[%clk 00:04:41]} {[%emt 00:00:38]} 34. Re2 {[%clk 00:03:22]}
{[%emt 00:03:14]} a5 {[%clk 00:04:27]} {[%emt 00:00:45]} 35. Rc6 {[%clk
00:03:03]} {[%emt 00:00:49]} a4 {[%clk 00:03:37]} {[%emt 00:01:20]} 36. d5
{[%clk 00:03:02]} {[%emt 00:00:31]} Rf7 {[%clk 00:01:07]} {[%emt 00:03:00]} 37.
dxe6 {[%clk 00:03:03]} {[%emt 00:00:29]} Re7 {[%clk 00:01:25]} {[%emt
00:00:12]} 38. Rd2 {[%clk 00:01:14]} {[%emt 00:02:18]} Kg7 {[%clk 00:01:34]}
{[%emt 00:00:21]} 39. f3 {[%clk 00:01:13]} {[%emt 00:00:31]} Re3 {[%clk
00:01:25]} {[%emt 00:00:39]} 40. Rb6 {[%clk 00:00:55]} {[%emt 00:00:48]} R3xe6
{[%clk 00:00:49]} {[%emt 00:01:06]} 41. Rxb5 {[%clk 00:01:12]} {[%emt
00:00:14]} 1/2-1/2

[Event "Klubbmästerskap 2025 Torsdagar"]
[Site "Linköping, Sweden"]
[Date "2025.02.27"]
[Round "5.5"]
[White "Karlsson, Henrik 1974"]
[Black "Snällfot, Magnus"]
[Result "0-1"]
[TimeControl "90 min + 30 sec/move"]
[WhiteElo "1804"]
[BlackElo "1778"]

1. e4 {[%clk 01:30:56]} {[%emt 00:00:04]} e5 {[%clk 01:30:54]} {[%emt
00:00:07]} 2. Nf3 {[%clk 01:31:20]} {[%emt 00:00:05]} Nc6 {[%clk 01:31:15]}
{[%emt 00:00:10]} 3. d4 {[%clk 01:31:44]} {[%emt 00:00:06]} exd4 {[%clk
01:31:34]} {[%emt 00:00:11]} 4. Nxd4 {[%clk 01:32:06]} {[%emt 00:00:07]} Bc5
{[%clk 01:31:34]} {[%emt 00:00:30]} 5. Nb3 {[%clk 01:31:37]} {[%emt 00:00:59]}
Bb6 {[%clk 01:29:20]} {[%emt 00:02:44]} 6. Nc3 {[%clk 01:31:23]} {[%emt
00:00:44]} a6 {[%clk 01:28:39]} {[%emt 00:01:13]} 7. Qe2 {[%clk 01:31:40]}
{[%emt 00:00:11]} d6 {[%clk 01:28:24]} {[%emt 00:00:46]} 8. Be3 {[%clk
01:31:53]} {[%emt 00:00:16]} Bxe3 {[%clk 01:27:34]} {[%emt 00:01:21]} 9. Qxe3
{[%clk 01:31:43]} {[%emt 00:00:41]} Nf6 {[%clk 01:27:38]} {[%emt 00:00:25]} 10.
O-O-O {[%clk 01:30:50]} {[%emt 00:01:23]} O-O {[%clk 01:20:45]} {[%emt
00:07:23]} 11. h4 {[%clk 01:28:07]} {[%emt 00:03:13]} Re8 {[%clk 01:13:25]}
{[%emt 00:07:49]} 12. f3 {[%clk 01:27:55]} {[%emt 00:00:42]} Qe7 {[%clk
01:10:00]} {[%emt 00:03:55]} 13. g4 {[%clk 01:26:09]} {[%emt 00:02:17]} Be6
{[%clk 01:02:28]} {[%emt 00:08:01]} 14. h5 {[%clk 01:24:46]} {[%emt 00:01:53]}
Kh8 {[%clk 00:50:54]} {[%emt 00:12:04]} 15. g5 {[%clk 01:20:48]} {[%emt
00:04:29]} Ng8 {[%clk 00:50:32]} {[%emt 00:00:52]} 16. Bd3 {[%clk 00:54:36]}
{[%emt 00:26:42]} Rad8 {[%clk 00:40:17]} {[%emt 00:10:45]} 17. f4 {[%clk
00:44:14]} {[%emt 00:10:52]} d5 {[%clk 00:34:55]} {[%emt 00:05:52]} 18. Qg3
{[%clk 00:33:42]} {[%emt 00:11:01]} dxe4 {[%clk 00:30:10]} {[%emt 00:05:15]} 19.
Bxe4 {[%clk 00:29:45]} {[%emt 00:04:27]} f5 {[%clk 00:24:38]} {[%emt 00:06:01]}
20. gxf6 {[%clk 00:20:12]} {[%emt 00:10:05]} Nxf6 {[%clk 00:22:43]} {[%emt
00:02:24]} 21. Rxd8 {[%clk 00:13:09]} {[%emt 00:07:34]} Rxd8 {[%clk 00:21:41]}
{[%emt 00:01:32]} 22. Bxc6 {[%clk 00:13:04]} {[%emt 00:00:35]} bxc6 {[%clk
00:21:29]} {[%emt 00:00:42]} 23. h6 {[%clk 00:13:17]} {[%emt 00:00:18]} g6
{[%clk 00:17:12]} {[%emt 00:04:46]} 24. Re1 {[%clk 00:13:20]} {[%emt 00:00:26]}
Qd6 {[%clk 00:16:44]} {[%emt 00:00:58]} 25. Qe3 {[%clk 00:12:19]} {[%emt
00:01:31]} Bxb3 {[%clk 00:07:23]} {[%emt 00:09:52]} 26. axb3 {[%clk 00:11:44]}
{[%emt 00:01:05]} Kg8 {[%clk 00:06:28]} {[%emt 00:01:24]} 27. Rd1 {[%clk
00:11:17]} {[%emt 00:00:57]} Nd5 {[%clk 00:06:29]} {[%emt 00:00:29]} 28. Nxd5
{[%clk 00:07:19]} {[%emt 00:04:29]} cxd5 {[%clk 00:06:47]} {[%emt 00:00:11]} 29.
Qd4 {[%clk 00:07:18]} {[%emt 00:00:30]} Qf8 {[%clk 00:05:27]} {[%emt 00:01:51]}
30. Qe5 {[%clk 00:03:00]} {[%emt 00:04:49]} Qxh6 {[%clk 00:02:56]} {[%emt
00:03:00]} 31. Rxd5 {[%clk 00:03:08]} {[%emt 00:00:23]} Qh1+ {[%clk 00:02:09]}
{[%emt 00:01:15]} 0-1